fUSD/lending_fUSD_20240916
["ID","MTS","AMOUNT","RATE_DAILY","PERIOD"]
[338342260,1726524633028,-615.56691,0.0001458,2]
[338342261,1726524633038,-3728.42969492,0.000146,2]
[338342262,1726524633050,-3498.10131452,0.000146,2]
[338342263,1726524633062,-2810.31557355,0.000146,2]
[338342264,1726524638298,-283.83287331,0.0001447,2]
[338342265,1726524638311,-149.59712669,0.0001447,2]
[338342266,1726524638323,-433.43,0.0001447,2]
[338342267,1726524638335,-433.43,0.0001447,2]
[338342268,1726524638345,-433.43,0.0001447,2]
[338342269,1726524638354,-433.43,0.0001447,2]
[338342270,1726524638364,-333.36312215,0.00014545,2]
[338342271,1726524638387,-100.06687785,0.00014545,2]
[338342272,1726524638397,-433.43,0.00014545,2]
[338342273,1726524638406,-118.67301834,0.00014545,2]
[338342274,1726524638417,-314.75698166,0.00014545,2]
[338342275,1726524638427,-783.54415418,0.000146,2]
[338342276,1726524638439,-453.81098583,0.000146,2]
[338342277,1726524638448,-743.89079087,0.000146,2]
[338342278,1726524638460,-256.10920913,0.000146,2]
[338342279,1726524638470,-150.0,0.00014609,2]
[338342280,1726524638480,-456.79495029,0.00014616,2]
[338342281,1726524638490,-456.79495029,0.00014651,2]
[338342282,1726524638500,-582.16202813,0.00014652,2]
[338342283,1726524638510,-306.99922809,0.0001467,2]
[338342284,1726524638519,-423.88,0.0001467,3]
[338342285,1726524638529,-211.94,0.0001467,3]
[338342286,1726524638538,-635.82,0.0001467,3]
[338342287,1726524638548,-588.9124,0.0001468,2]
[338342288,1726524638559,-1214.6710623,0.0001468,2]
[338342289,1726524638571,-255.0,0.0001468,2]
[338342290,1726524638585,-652.9873377,0.0001468,2]
[338342291,1726524638597,-3138.48080458,0.0001468,2]
[338342292,1726524638643,375.42,0.0001184,2]
[338342293,1726524638664,-433.43,0.00014545,2]
[338342294,1726524638673,-10701.57961967,0.0001468,2]
[338342295,1726524638685,-1094.21,0.0001468,2]
[338342298,1726524640256,-375.42,0.00014103,2]
[338342299,1726524640266,-433.43,0.0001457,2]
[338342300,1726524640276,-433.43,0.0001459,2]
[338342301,1726524640285,-433.43,0.0001459,2]
[338342302,1726524640295,-433.43,0.0001459,2]
[338342303,1726524640304,-433.43,0.0001466,2]
[338342304,1726524640314,-433.43,0.0001467,2]
[338342305,1726524640326,-433.43,0.0001467,2]
[338342306,1726524640335,-170.4258231,0.0001468,2]
[338342307,1726524640346,-2778.37187532,0.0001468,2]
[338342308,1726524640357,-4580.74187796,0.0001468,2]
[338342309,1726524640369,-27750.57478967,0.0001468,2]
[338342310,1726524640429,-522.77982189,0.0001468,2]
[338342311,1726524640441,-3475.34360451,0.0001468,2]
[338342312,1726524640453,-503.27064302,0.0001468,2]
[338342313,1726524640470,-433.43,0.0001467,2]
[338342314,1726524640479,-59916.66009375,0.0001468,2]
[338342315,1726524640491,-3790.61579841,0.0001468,2]
[338342317,1726524643234,-500.0,0.00014386,2]
[338342318,1726524643326,-559.64195389,0.00014386,2]
[338342319,1726524643336,-433.43,0.0001467,2]
[338342320,1726524643346,-433.43,0.0001467,2]
[338342321,1726524643357,-433.43,0.0001467,2]
[338342322,1726524643367,-433.43,0.0001467,2]
[338342323,1726524643377,-433.43,0.0001467,2]
[338342324,1726524643387,-433.43,0.0001467,2]
[338342325,1726524643396,-433.43,0.0001467,2]
[338342326,1726524643406,-48.81184301,0.0001467,2]
[338342327,1726524643419,-254.7290866,0.0001467,2]
[338342331,1726524646254,-421.34449989,0.00014511,2]
[338342332,1726524646264,-129.88907039,0.0001467,2]
[338342333,1726524646276,-433.43,0.0001467,2]
[338342334,1726524646285,-433.43,0.0001467,2]
[338342335,1726524646295,-433.43,0.0001467,2]
[338342336,1726524646304,-433.43,0.0001467,2]
[338342337,1726524646314,-433.43,0.0001467,2]
[338342338,1726524646323,-433.43,0.0001467,2]
[338342339,1726524646336,-433.43,0.0001467,2]
[338342340,1726524646346,-433.43,0.0001467,2]
[338342341,1726524646355,-433.43,0.0001467,2]
[338342342,1726524646364,-433.43,0.0001467,2]
[338342343,1726524646373,-433.43,0.0001467,2]
[338342344,1726524646383,-433.43,0.0001467,2]
[338342345,1726524646392,-433.43,0.0001467,2]
[338342346,1726524646401,-433.43,0.0001467,2]
[338342347,1726524646411,-433.43,0.0001467,2]
[338342348,1726524646421,-24766.09724812,0.0001468,2]
[338342349,1726524646429,-740.0578,0.0001468,2]
[338342350,1726524646439,-456.79495029,0.00014687,2]
[338342351,1726524646448,-168.1657389,0.00014699,2]
[338342352,1726524646457,-156.10988812,0.00014699,2]
[338342353,1726524646467,-12667.85461606,0.000147,2]
[338342354,1726524646476,-172.31316663,0.000147,2]
[338342355,1726524646486,-406.65,0.000147,2]
[338342356,1726524646495,-1000.0,0.000147,2]
[338342357,1726524646504,-348.7076,0.00014706,2]
[338342358,1726524646514,-456.79495029,0.00014722,2]
[338342359,1726524646524,-150.0,0.00014727,2]
[338342360,1726524646533,-150.0,0.0001473,2]
[338342361,1726524646543,-456.79495029,0.00014758,2]
[338342362,1726524646554,-156.55,0.0001476,2]
[338342363,1726524646563,-45499.5531811,0.0001476,3]
[338342364,1726524646573,-150.0,0.00014763,2]
[338342365,1726524646583,-6630.4089379,0.0001477,3]
[338342366,1726524646596,-79435.61582784,0.0001477,3]
[338342367,1726524646607,-1338.8375,0.0001477,3]
[338342368,1726524646619,-11626.46663704,0.0001477,3]
[338342369,1726524646631,-2387.64425534,0.0001477,3]
[338342370,1726524668507,500.0,0.00011164,2]
[338342371,1726524668691,500.0,0.00011164,2]
[338342372,1726524670527,500.0,0.00012534,2]
[338342373,1726524678332,172.02,0.00010959,2]
[338342374,1726524681371,500.0,0.00011164,2]
[338342375,1726524967403,500.0,0.00011164,2]
[338342376,1726524975706,500.0,0.00011164,2]
[338342377,1726524977080,500.0,0.00012534,2]
[338342379,1726524991652,500.0,0.00011164,2]
[338342380,1726524993222,500.0,0.00012534,2]
[338342381,1726525095036,500.0,0.00026,60]
[338342382,1726525095306,250.0,0.00026,60]
[338342383,1726525198182,153.08,0.00010959,2]
[338342384,1726525214475,369.62,0.0001135,2]
[338342385,1726525267849,500.0,0.00026,120]
[338342386,1726525268297,500.0,0.00026,120]
[338342387,1726525268744,500.0,0.00026,120]
[338342388,1726525269365,500.0,0.00026,120]
[338342389,1726525269640,500.0,0.00026,120]
[338342390,1726525270104,500.0,0.00026,120]
[338342391,1726525270582,500.0,0.00026,120]
[338342392,1726525271083,500.0,0.00026,120]
[338342393,1726525271530,500.0,0.00026,120]
[338342394,1726525271978,500.0,0.00026,120]
[338342395,1726525272455,500.0,0.00026,120]
[338342396,1726525272908,500.0,0.00026,120]
[338342397,1726525273418,500.0,0.00026,120]
[338342398,1726525273892,500.0,0.00026,120]
[338342399,1726525274337,500.0,0.00026,120]
[338342400,1726525274757,500.0,0.00026,120]
[338342401,1726525275177,500.0,0.00026,120]
[338342402,1726525275614,500.0,0.00026,120]
[338342403,1726525276054,500.0,0.00026,120]
[338342404,1726525276489,500.0,0.00026,120]
[338342405,1726525276940,500.0,0.00026,120]
[338342406,1726525277407,500.0,0.00026,120]
[338342407,1726525277835,500.0,0.00026,120]
[338342408,1726525278288,500.0,0.00026,120]
[338342409,1726525278737,500.0,0.00026,120]
[338342410,1726525279199,500.0,0.00026,120]
[338342411,1726525279662,500.0,0.00026,120]
[338342412,1726525280123,500.0,0.00026,120]
[338342413,1726525281005,500.0,0.00026,120]
[338342414,1726525281501,500.0,0.00026,120]
[338342415,1726525281923,500.0,0.00026,120]
[338342416,1726525282374,500.0,0.00026,120]
[338342417,1726525282818,500.0,0.00026,120]
[338342418,1726525283258,500.0,0.00026,120]
[338342419,1726525284178,500.0,0.00026,120]
[338342420,1726525284627,500.0,0.00026,120]
[338342421,1726525285242,500.0,0.00026,120]
[338342422,1726525285674,500.0,0.00026,120]
[338342423,1726525286564,500.0,0.00026,120]
[338342424,1726525287034,500.0,0.00026,120]
[338342425,1726525287467,605.79873474,0.00026,120]
[338342426,1726525362867,7509.62143524,0.00026,60]
[338342427,1726525371095,1813.99,0.00026,60]
[338342428,1726525371357,1813.99,0.00026,60]
[338342429,1726525371631,1813.99,0.00026,60]
[338342430,1726525371928,1813.99,0.00026,60]
[338342431,1726525372172,1813.99,0.00026,60]
[338342432,1726525372416,1813.99,0.00026,60]
[338342433,1726525372708,1813.99,0.00026,60]
[338342434,1726525372973,1813.99,0.00026,60]
[338342435,1726525373268,1813.99,0.00026,60]
[338342436,1726525373575,1813.99,0.00026,60]
[338342437,1726525373847,1813.99,0.00026,60]
[338342438,1726525374116,1813.99,0.00026,60]
[338342439,1726525374936,1813.99,0.00026,60]
[338342440,1726525375037,1813.99,0.00026,60]
[338342441,1726525375305,1813.99,0.00026,60]
[338342442,1726525375577,1813.99,0.00026,60]
[338342443,1726525375882,1813.99,0.00026,60]
[338342444,1726525376164,1813.99,0.00026,60]
[338342445,1726525376421,1813.99,0.00026,60]
[338342446,1726525376714,1813.99,0.00026,60]
[338342447,1726525376989,1813.99,0.00026,60]
[338342448,1726525377248,1813.99,0.00026,60]
[338342449,1726525377532,1813.99,0.00026,60]
[338342450,1726525377805,1814.01228293,0.00026,60]
[338342451,1726525402825,500.0,0.00026,120]
[338342452,1726525409370,370.977359,0.00026,120]
[338342453,1726525465832,1050.0,0.00011,2]
[338342454,1726525595044,211.94,0.00010959,2]
[338342455,1726525605855,176.61,0.00010959,2]
[338342456,1726525616506,883.09,0.00010959,2]
[338342462,1726525712655,20286.57066828,0.00026,60]
[338342463,1726525731884,2468.276377,0.00012589,2]
[338342473,1726525809187,-257.90671441,0.00012653,2]
[338342475,1726525809216,-1829.08598173,0.00012696,2]
[338342477,1726525823524,250.0,0.00012617,2]
[338342482,1726525831527,-56.43401827,0.00012696,2]
[338342483,1726525831537,-200.0,0.00012725,2]
[338342484,1726525831547,-250.0,0.00012753,2]
[338342485,1726525831556,-154.0,0.00012768,2]
[338342486,1726525831566,-57.14689954,0.00012802,2]
[338342487,1726525831578,-142.85310046,0.00012802,2]
[338342488,1726525831587,-300.0,0.00012899,2]
[338342489,1726525831596,-129.2803836,0.000129,2]
[338342490,1726525831607,-48.40921331,0.000129,2]
[338342491,1726525831616,-636.64503404,0.000129,2]
[338342492,1726525831628,-270.7366813,0.000129,2]
[338342493,1726525831639,-2139.13684921,0.000129,2]
[338342494,1726525831650,-421.35408527,0.000129,2]
[338342495,1726525831660,-500.0,0.00012973,2]
[338342496,1726525831671,-431.83,0.00012982,2]
[338342497,1726525831681,-152.83,0.0001299,2]
[338342498,1726525831694,-152.83,0.0001299,2]
[338342499,1726525831703,-152.83,0.0001299,2]
[338342500,1726525831712,-152.83,0.0001299,2]
[338342501,1726525831721,-152.83,0.0001299,2]
[338342502,1726525831731,-152.83,0.0001299,2]
[338342503,1726525831740,-152.83,0.0001299,2]
[338342504,1726525831751,-152.83,0.0001299,2]
[338342505,1726525831762,-615.09435848,0.0001299,2]
[338342506,1726525831772,-615.09435848,0.0001299,2]
[338342507,1726525831781,-615.09435848,0.0001299,2]
[338342508,1726525831790,-500.0,0.00012999,2]
[338342509,1726525831800,-485.38272833,0.00012999,2]
[338342510,1726525831810,-161.58,0.00012999,2]
[338342511,1726525831819,-24813.00116121,0.00013,2]
[338342516,1726525837414,-404.01732589,0.00013,2]
[338342517,1726525837425,-602.93346,0.00013,2]
[338342518,1726525837493,-943.30260983,0.00013,2]
[338342519,1726525837504,-1539.04003684,0.00013,2]
[338342520,1726525837515,-371.59199,0.00013,2]
[338342521,1726525837526,-4165.69286171,0.00013,2]
[338342522,1726525837537,-2004.26571999,0.00013,2]
[338342523,1726525837571,-409.59262913,0.00013,2]
[338342524,1726525837650,-437.70943335,0.00013,2]
[338342525,1726525837661,-304.94405594,0.00013,2]
[338342526,1726525837673,-782.53154917,0.00013,2]
[338342527,1726525837686,-276.73994888,0.00013,2]
[338342528,1726525837700,-800.0,0.00013,2]
[338342529,1726525837711,-476.81295156,0.00013,2]
[338342530,1726525837723,-768.23091752,0.00013,2]
[338342531,1726525837735,-5000.0,0.00013,2]
[338342532,1726525837747,-22102.0,0.00013,2]
[338342535,1726525839352,-27038.00154989,0.00013,2]
[338342537,1726525839432,-606.945,0.00013,2]
[338342538,1726525839443,-1316.2433832,0.00013,2]
[338342539,1726525839580,-19808.27972165,0.00013,2]
[338342540,1726525839592,-308.94361421,0.00013,2]
[338342541,1726525839603,-39076.19056444,0.00013,2]
[338342542,1726525839613,-1100.0,0.00013,2]
[338342543,1726525839622,-1812746.71991239,0.00013,2]
[338342544,1726525839631,-1612317.63484103,0.00013,2]
[338342545,1726525839640,-4536.63,0.00013,2]
[338342546,1726525839650,-1548.95,0.00013003,2]
[338342547,1726525839659,-610.52,0.00013105,2]
[338342548,1726525839668,-499.99,0.00013105,2]
[338342549,1726525839678,-150.0,0.00013118,2]
[338342550,1726525839688,-446.76,0.00013186,2]
[338342551,1726525839700,-800.0,0.00013186,2]
[338342552,1726525839709,-10000.0,0.00013424,2]
[338342553,1726525839719,-369.62,0.00013614,2]
[338342554,1726525839728,-297.67,0.00013763,2]
[338342555,1726525839738,-284051.880163,0.000138,3]
[338342556,1726525839748,-92208.2306699,0.000139,3]
[338342557,1726525839758,-3046.51856455,0.000139,2]
[338342558,1726525839768,-421.35408526,0.000139,2]
[338342559,1726525839777,-500.0,0.00013904,2]
[338342560,1726525839787,-500.0,0.00013904,2]
[338342561,1726525839796,-1146.0,0.00013914,2]
[338342562,1726525839805,-752.99,0.00014055,2]
[338342563,1726525839815,-422.56,0.00014055,2]
[338342564,1726525839824,-20958.87829805,0.00014134,2]
[338342565,1726525839833,-624.0,0.00014144,2]
[338342566,1726525839842,-1261.0,0.00014144,2]
[338342567,1726525839851,-448.0,0.00014144,2]
[338342568,1726525839860,-1547.0,0.00014144,2]
[338342569,1726525839869,-5861.0,0.00014144,2]
[338342570,1726525839878,-931.0,0.00014144,2]
[338342571,1726525839887,-810.0,0.00014144,2]
[338342572,1726525839896,-150.0,0.00014144,2]
[338342573,1726525839905,-207.966,0.00014144,2]
[338342574,1726525839914,-557.0,0.00014144,2]
[338342575,1726525839924,-188.121,0.00014144,2]
[338342576,1726525839933,-1983.526,0.00014144,2]
[338342577,1726525839943,-553.0,0.00014144,2]
[338342578,1726525839952,-9311.0,0.00014144,2]
[338342579,1726525839962,-420.0,0.00014147,2]
[338342580,1726525839970,-150.0,0.00014192,2]
[338342581,1726525839980,-427.94,0.00014192,2]
[338342582,1726525839989,-357.82,0.00014192,2]
[338342583,1726525839998,-304.08,0.00014192,2]
[338342584,1726525840007,-169.82,0.00014192,2]
[338342585,1726525840016,-173.13,0.00014192,2]
[338342586,1726525840026,-150.0,0.00014192,2]
[338342587,1726525840035,-150.0,0.00014192,2]
[338342588,1726525840045,-195.051,0.00014256,2]
[338342589,1726525840054,-152.83,0.0001426,2]
[338342590,1726525840064,-5916.8581,0.0001428,2]
[338342591,1726525840073,-179.19930011,0.0001428,2]
[338342592,1726525840082,-200.0,0.00014315,2]
[338342593,1726525840092,-156.10988812,0.0001434,2]
[338342594,1726525840102,-500.0,0.00014373,2]
[338342595,1726525840111,-171.04883217,0.00014375,2]
[338342596,1726525840120,-8395.76963057,0.00014378,2]
[338342597,1726525840129,-522.0,0.0001438,2]
[338342598,1726525840139,-1000.0,0.000144,2]
[338342599,1726525840148,-226.0,0.000144,2]
[338342600,1726525840158,-957.5,0.000144,2]
[338342601,1726525840167,-359.0,0.000144,2]
[338342602,1726525840177,-230.0,0.0001444,2]
[338342603,1726525840186,-28382.2038,0.0001447,2]
[338342604,1726525840195,-1058.99785284,0.00014475,2]
[338342605,1726525840205,-3413.4275,0.0001448,2]
[338342606,1726525840215,-7500.0,0.0001448,2]
[338342607,1726525840224,-179.19930009,0.00014487,2]
[338342608,1726525840233,-1000.0,0.000145,2]
[338342609,1726525840242,-150.0,0.0001451,2]
[338342610,1726525840251,-500.0,0.00014521,2]
[338342611,1726525840261,-150.0,0.00014543,2]
[338342612,1726525840270,-230.0,0.0001455,2]
[338342613,1726525840279,-15748.52683179,0.0001455,2]
[338342614,1726525840288,-150.0,0.00014554,2]
[338342615,1726525840298,-152.83,0.00014568,2]
[338342616,1726525840307,-152.83,0.00014568,2]
[338342617,1726525840317,-152.83,0.00014568,2]
[338342618,1726525840326,-152.83,0.00014568,2]
[338342619,1726525840336,-152.83,0.00014568,2]
[338342620,1726525840346,-500.0,0.00014573,2]
[338342621,1726525840355,-150.0,0.00014574,2]
[338342622,1726525840365,-154648.0,0.00014575,2]
[338342623,1726525840374,-161.22266981,0.00014575,2]
[338342624,1726525840383,-2050358.92921838,0.00014578,2]
[338342625,1726525840393,-151.0,0.00014578,2]
[338342626,1726525840403,-151.0,0.00014578,2]
[338342627,1726525840412,-151.0,0.00014578,2]
[338342628,1726525840421,-1901.482368,0.00014578,2]
[338342629,1726525840430,-151.0,0.00014578,2]
[338342630,1726525840440,-151.0,0.00014578,2]
[338342631,1726525840449,-183.67499,0.00014578,2]
[338342632,1726525840459,-183.67499,0.00014578,2]
[338342633,1726525840468,-151.0,0.00014578,2]
[338342634,1726525840478,-151.0,0.00014578,2]
[338342635,1726525840487,-151.0,0.00014578,2]
[338342636,1726525840496,-151.0,0.00014578,2]
[338342637,1726525840506,-151.0,0.00014578,2]
[338342638,1726525840515,-989.697639,0.00014578,2]
[338342639,1726525840525,-989.697639,0.00014578,2]
[338342640,1726525840534,-151.0,0.00014578,2]
[338342641,1726525840544,-435.265094,0.00014578,2]
[338342642,1726525840553,-435.265094,0.00014578,2]
[338342643,1726525840562,-151.0,0.00014578,2]
[338342644,1726525840572,-435.265094,0.00014578,2]
[338342645,1726525840582,-435.265094,0.00014578,2]
[338342646,1726525840591,-151.0,0.00014578,2]
[338342647,1726525840600,-151.0,0.00014578,2]
[338342648,1726525840610,-151.0,0.00014578,2]
[338342649,1726525840619,-151.0,0.00014578,2]
[338342650,1726525840628,-151.0,0.00014578,2]
[338342651,1726525840637,-158.505026,0.00014578,2]
[338342652,1726525840647,-547.686917,0.00014578,2]
[338342653,1726525840656,-151.0,0.00014578,2]
[338342654,1726525840665,-547.686917,0.00014578,2]
[338342655,1726525840675,-151.0,0.00014578,2]
[338342656,1726525840684,-351.445464,0.00014578,2]
[338342657,1726525840697,-351.445464,0.00014578,2]
[338342658,1726525840707,-151.0,0.00014578,2]
[338342659,1726525840716,-151.0,0.00014578,2]
[338342660,1726525840725,-151.0,0.00014578,2]
[338342661,1726525840734,-397.656286,0.00014578,2]
[338342662,1726525840744,-397.656286,0.00014578,2]
[338342663,1726525840754,-238.087688,0.00014578,2]
[338342664,1726525840763,-238.087688,0.00014578,2]
[338342665,1726525840931,-7048.5904,0.0001458,2]
[338342666,1726525840945,-829.4856,0.0001458,2]
[338342667,1726525840955,-241790.3303,0.0001458,2]
[338342668,1726525840965,-1289.8741,0.0001458,2]
[338342669,1726525840976,-176.7848,0.0001458,2]
[338342670,1726525840988,-151.0,0.0001458,2]
[338342671,1726525840998,-151.0,0.0001458,2]
[338342672,1726525841007,-299.919505,0.0001458,2]
[338342673,1726525841018,-299.919505,0.0001458,2]
[338342674,1726525841028,-456.411688,0.0001458,2]
[338342675,1726525841037,-151.0,0.0001458,2]
[338342676,1726525841047,-456.411688,0.0001458,2]
[338342677,1726525841056,-151.0,0.0001458,2]
[338342678,1726525841066,-151.0,0.0001458,2]
[338342679,1726525841075,-151.0,0.0001458,2]
[338342680,1726525841084,-151.0,0.0001458,2]
[338342681,1726525841093,-151.0,0.0001458,2]
[338342682,1726525841103,-151.0,0.0001458,2]
[338342683,1726525841114,-151.0,0.0001458,2]
[338342684,1726525841124,-151.0,0.0001458,2]
[338342685,1726525841134,-151.0,0.0001458,2]
[338342686,1726525841144,-155.878996,0.0001458,2]
[338342687,1726525841153,-151.065845,0.0001458,2]
[338342688,1726525841163,-150.0,0.000146,2]
[338342689,1726525841171,-1000.0,0.000146,2]
[338342690,1726525841181,-362.59155,0.0001462,2]
[338342691,1726525841190,-4842.74599427,0.0001463,2]
[338342692,1726525841201,-171.04883216,0.00014638,2]
[338342693,1726525841210,-230.0,0.0001466,2]
[338342694,1726525841220,-343.3687,0.0001468,2]
[338342695,1726525841230,-45538.009,0.0001468,2]
[338342696,1726525841239,-1000.0,0.0001468,2]
[338342697,1726525841249,-948.8535,0.0001468,2]
[338342698,1726525841258,-268.0911,0.0001468,2]
[338342699,1726525841268,-150.0,0.00014683,2]
[338342700,1726525841277,-179.19930009,0.00014693,2]
[338342701,1726525841285,-421.67,0.000147,2]
[338342702,1726525841295,-309.46,0.000147,2]
[338342703,1726525841304,-1993.32,0.000147,2]
[338342704,1726525841314,-287.66835123,0.0001475,2]
[338342705,1726525841330,-2000.0,0.0001477,2]
[338342706,1726525841339,-200.0,0.0001477,2]
[338342707,1726525841348,-151.0,0.0001477,2]
[338342708,1726525841357,-151.0,0.0001477,2]
[338342709,1726525841366,-152.692736,0.0001477,2]
[338342710,1726525841376,-151.0,0.0001477,2]
[338342711,1726525841385,-152.692736,0.0001477,2]
[338342712,1726525841394,-151.37371,0.0001477,2]
[338342713,1726525841403,-255.77113,0.0001477,2]
[338342714,1726525841412,-446.651797,0.0001477,2]
[338342715,1726525841421,-446.651797,0.0001477,2]
[338342716,1726525841430,-151.0,0.0001477,2]
[338342717,1726525841442,-416.01968,0.0001477,2]
[338342718,1726525841451,-209.386854,0.0001477,2]
[338342719,1726525841461,-416.01968,0.0001477,2]
[338342720,1726525841470,-209.386854,0.0001477,2]
[338342721,1726525841479,-151.0,0.0001477,2]
[338342722,1726525841488,-151.0,0.0001477,2]
[338342723,1726525841498,-151.0,0.0001477,2]
[338342724,1726525841507,-151.0,0.0001477,2]
[338342725,1726525841516,-355.281799,0.0001477,2]
[338342726,1726525841525,-355.281799,0.0001477,2]
[338342727,1726525841534,-151.0,0.0001477,2]
[338342728,1726525841544,-687.99886,0.0001477,2]
[338342729,1726525841553,-687.99886,0.0001477,2]
[338342730,1726525841563,-1752.056258,0.0001477,2]
[338342731,1726525841574,-1752.056258,0.0001477,2]
[338342732,1726525841583,-151.0,0.0001477,2]
[338342733,1726525841592,-151.006059,0.0001477,2]
[338342734,1726525841601,-151.0,0.0001477,2]
[338342735,1726525841610,-151.0,0.0001477,2]
[338342736,1726525841619,-151.0,0.0001477,2]
[338342737,1726525841629,-349.662044,0.0001477,2]
[338342738,1726525841638,-151.0,0.0001477,2]
[338342739,1726525841647,-349.662044,0.0001477,2]
[338342740,1726525841656,-151.0,0.0001477,2]
[338342741,1726525841666,-151.0,0.0001477,2]
[338342742,1726525841675,-151.0,0.0001477,2]
[338342743,1726525841684,-151.0,0.0001477,2]
[338342744,1726525841694,-1901.482368,0.0001477,2]
[338342745,1726525841704,-151.0,0.0001477,2]
[338342746,1726525841714,-151.0,0.0001477,2]
[338342747,1726525841723,-183.67499,0.0001477,2]
[338342748,1726525841732,-183.67499,0.0001477,2]
[338342749,1726525841742,-151.0,0.0001477,2]
[338342750,1726525841752,-151.0,0.0001477,2]
[338342751,1726525841761,-989.697639,0.0001477,2]
[338342752,1726525841772,-989.697639,0.0001477,2]
[338342753,1726525841781,-435.265094,0.0001477,2]
[338342754,1726525841790,-435.265094,0.0001477,2]
[338342755,1726525841799,-151.0,0.0001477,2]
[338342756,1726525841808,-151.0,0.0001477,2]
[338342757,1726525841822,-547.686917,0.0001477,2]
[338342758,1726525841831,-151.0,0.0001477,2]
[338342759,1726525841840,-547.686917,0.0001477,2]
[338342760,1726525841850,-351.445464,0.0001477,2]
[338342761,1726525841859,-351.445464,0.0001477,2]
[338342762,1726525841870,-151.0,0.0001477,2]
[338342763,1726525841879,-151.0,0.0001477,2]
[338342764,1726525841888,-151.0,0.0001477,2]
[338342765,1726525841897,-397.656286,0.0001477,2]
[338342766,1726525841907,-152.83,0.0001477,2]
[338342767,1726525841916,-152.83,0.0001477,2]
[338342768,1726525841925,-397.656286,0.0001477,2]
[338342769,1726525841935,-238.087688,0.0001477,2]
[338342770,1726525841944,-238.087688,0.0001477,2]
[338342771,1726525841955,-239.5209909,0.00014777,2]
[338342772,1726525841965,-156.0275048,0.00014777,2]
[338342773,1726525841975,-1410.5974975,0.00014777,2]
[338342774,1726525841986,-1533.0070421,0.00014777,2]
[338342775,1726525841996,-150.01,0.00014779,2]
[338342776,1726525842006,-2928.25427443,0.00014779,2]
[338342777,1726525842016,-11305.35,0.0001478,2]
[338342778,1726525842025,-269951.09679275,0.0001478,2]
[338342779,1726525842035,-272.419401,0.0001478,2]
[338342780,1726525842046,-151.0,0.0001478,2]
[338342781,1726525842056,-230.0,0.0001478,2]
[338342782,1726525842070,-152.692736,0.0001478,2]
[338342783,1726525842079,-151.0,0.0001478,2]
[338342784,1726525842089,-152.692736,0.0001478,2]
[338342785,1726525842098,-446.651797,0.0001478,2]
[338342786,1726525842108,-446.651797,0.0001478,2]
[338342787,1726525842117,-156.110018,0.0001478,2]
[338342788,1726525842126,-416.01968,0.0001478,2]
[338342789,1726525842136,-209.386854,0.0001478,2]
[338342790,1726525842145,-416.01968,0.0001478,2]
[338342791,1726525842155,-209.386854,0.0001478,2]
[338342792,1726525842164,-151.0,0.0001478,2]
[338342793,1726525842174,-151.0,0.0001478,2]